bitfinex/quotes_BTCUSD_20250208
["timestamp","ask_amount","ask_price","bid_price","bid_amount"]
[1738973767703,0.49321808,96474.0,96473.0,0.33642395]
[1738973767900,0.49221808,96474.0,96473.0,0.33542395]
[1738973768683,0.49321808,96474.0,96473.0,0.33942395]
[1738973769103,0.49321808,96474.0,96473.0,0.21569345]
[1738973769356,0.49521808,96474.0,96473.0,0.21148328]
[1738973769794,0.49421808,96474.0,96473.0,0.20948328]
[1738973770154,0.49321808,96474.0,96473.0,0.20348328]
[1738973770357,0.49421808,96474.0,96473.0,0.20748328]
[1738973770566,0.49321808,96474.0,96473.0,0.20548328]
[1738973770975,0.49421808,96474.0,96473.0,0.20748328]
[1738973771663,0.49421808,96474.0,96473.0,0.16148328]
[1738973773050,0.49321808,96474.0,96473.0,0.15948328]
[1738973773249,0.49321808,96474.0,96473.0,0.15648328]
[1738973773447,0.49421808,96474.0,96473.0,0.16148328]
[1738973773704,0.49321808,96474.0,96473.0,0.16048328]
[1738973773876,0.49321808,96474.0,96473.0,0.15548328]
[1738973774239,0.49421808,96474.0,96473.0,0.15648328]
[1738973775197,0.49521808,96474.0,96473.0,0.16048328]
[1738973775411,0.49421808,96474.0,96473.0,0.15948328]
[1738973775611,0.49321808,96474.0,96473.0,0.15948328]
[1738973775773,0.49521808,96474.0,96473.0,0.16448328]
[1738973776635,0.49521808,96474.0,96473.0,0.00900028]
[1738973776636,0.51274224,96474.0,96473.0,0.00900028]
[1738973776869,0.49521808,96474.0,96473.0,0.00900028]
[1738973777651,0.65070008,96474.0,96473.0,0.00900028]
[1738973777972,0.80070008,96474.0,96473.0,0.00900028]
[1738973778173,0.90320373,96474.0,96473.0,0.00900028]
[1738973778536,0.90320373,96474.0,96473.0,0.00500028]
[1738973778724,1.00370738,96474.0,96473.0,0.00100028]
[1738973778923,1.00570738,96474.0,96473.0,0.00100028]
[1738973779125,0.90320373,96474.0,96473.0,0.00100028]
[1738973779370,0.90220373,96474.0,96473.0,2.8e-07]
[1738973779572,0.91120373,96474.0,96473.0,2.8e-07]
[1738973779747,0.90520373,96474.0,96473.0,2.8e-07]
[1738973779958,0.90020373,96474.0,96473.0,2.8e-07]
[1738973780363,0.90320373,96474.0,96473.0,2.8e-07]
[1738973780773,0.49421808,96474.0,96473.0,2.8e-07]
[1738973780979,0.49421808,96474.0,96473.0,0.15548328]
[1738973781180,0.49621808,96474.0,96473.0,0.15548328]
[1738973781787,0.49421808,96474.0,96473.0,0.15548328]
[1738973782625,0.49521808,96474.0,96473.0,0.15548328]
[1738973782833,0.49621808,96474.0,96473.0,0.15548328]
[1738973783206,0.49621808,96474.0,96473.0,0.25798693]
[1738973783383,0.49421808,96474.0,96473.0,0.25798693]
[1738973783591,0.49221808,96474.0,96473.0,0.25798693]
[1738973783830,0.49321808,96474.0,96473.0,0.25898693]
[1738973784159,0.49321808,96474.0,96473.0,0.15648328]
[1738973784987,0.49221808,96474.0,96473.0,0.15648328]
[1738973785399,0.49321808,96474.0,96473.0,0.16048328]
[1738973785800,0.49321808,96474.0,96473.0,0.15948328]
[1738973786020,0.49421808,96474.0,96473.0,0.16348328]
[1738973786254,0.49421808,96474.0,96473.0,0.15648328]
[1738973786785,0.49521808,96474.0,96473.0,0.26298693]
[1738973790254,0.49544236,96474.0,96473.0,0.26298693]
[1738973792591,0.49544236,96474.0,96473.0,1.03348693]
[1738973792796,0.49544236,96474.0,96473.0,1.04348693]
[1738973793294,0.49544236,96474.0,96473.0,1.06558478]
[1738973793624,0.49444236,96474.0,96473.0,1.07458478]
[1738973794004,0.49544236,96474.0,96473.0,1.07558478]
[1738973794420,0.41051836,96474.0,96473.0,1.03948693]
[1738973794754,0.39078736,96474.0,96473.0,1.04848693]
[1738973795138,0.01027236,96474.0,96473.0,1.04848693]
[1738973795333,3.6e-07,96474.0,96473.0,1.04848693]
[1738973795680,3.6e-07,96474.0,96473.0,1.08057234]
[1738973795879,4.554e-05,96495.0,96473.0,1.08057234]
[1738973795880,2.8e-07,96485.0,96484.0,0.371466]
[1738973796066,2.8e-07,96485.0,96484.0,0.47396965]
[1738973797077,2.8e-07,96485.0,96484.0,0.51790446]
[1738973797494,2.8e-07,96485.0,96484.0,0.52690446]
[1738973797702,2.8e-07,96485.0,96484.0,0.53723502]
[1738973799006,2.8e-07,96485.0,96484.0,1.07873502]
[1738973799304,2.8e-07,96485.0,96484.0,1.08773502]
[1738973799636,2.8e-07,96485.0,96484.0,1.11984155]
[1738973799840,2.8e-07,96485.0,96484.0,1.08773502]
[1738973804789,2.8e-07,96485.0,96484.0,1.11979884]
[1738973808126,2.8e-07,96485.0,96484.0,1.05379884]
[1738973808298,2.8e-07,96485.0,96484.0,1.02173502]
[1738973808480,2.8e-07,96485.0,96484.0,0.99873502]
[1738973809006,2.8e-07,96485.0,96484.0,1.02173502]
[1738973810836,2.8e-07,96485.0,96484.0,1.03173502]
[1738973811018,2.8e-07,96485.0,96484.0,1.02173502]
[1738973813049,2.8e-07,96485.0,96484.0,1.02184182]
[1738973813475,0.00034528,96485.0,96484.0,1.02184182]
[1738973817190,0.05004528,96485.0,96484.0,0.20483817]
[1738973817405,0.05004528,96485.0,96484.0,0.18390336]
[1738973817538,0.12684528,96485.0,96484.0,0.18390336]
[1738973817901,0.12684528,96485.0,96484.0,0.4914728]
[1738973818114,0.12684528,96485.0,96484.0,0.4884728]
[1738973818275,0.12684528,96485.0,96484.0,0.4924728]
[1738973818674,0.12684528,96485.0,96484.0,0.4864728]
[1738973818905,0.12684528,96485.0,96484.0,0.4884728]
[1738973819506,0.12684528,96485.0,96484.0,0.4864728]
[1738973819959,0.12684528,96485.0,96484.0,0.4874728]
[1738973820564,0.12684528,96485.0,96484.0,0.4894728]
[1738973821588,0.12684528,96485.0,96484.0,0.4854728]
[1738973821884,0.12684528,96485.0,96484.0,0.4894728]
[1738973822338,0.12684528,96485.0,96484.0,0.4854728]
[1738973822671,0.12784528,96485.0,96484.0,0.4924728]
[1738973823213,0.12784528,96485.0,96484.0,0.4894728]
[1738973823642,0.12784528,96485.0,96484.0,0.4914728]
[1738973823839,0.12784528,96485.0,96484.0,0.4894728]
[1738973824241,0.12784528,96485.0,96484.0,0.4934728]
[1738973826220,0.12784528,96485.0,96484.0,0.59597645]
[1738973826388,0.00134528,96485.0,96484.0,0.59597645]
[1738973827451,0.00134528,96485.0,96484.0,0.60634246]
[1738973828263,0.00134528,96485.0,96484.0,0.79990656]
[1738973828918,0.00134528,96485.0,96484.0,0.8320689]
[1738973829701,0.00134528,96485.0,96484.0,0.8280689]
[1738973829909,0.00034528,96485.0,96484.0,0.8290689]
[1738973830330,0.00034528,96485.0,96484.0,0.8380689]
[1738973831641,0.00034528,96485.0,96484.0,1.3795689]
[1738973848248,4.554e-05,96495.0,96488.0,0.01]
[1738973848450,4.554e-05,96495.0,96494.0,0.17845]
[1738973848656,4.554e-05,96495.0,96494.0,0.31415201]
[1738973848857,4.554e-05,96495.0,96494.0,0.31311599]
[1738973849923,4.554e-05,96495.0,96494.0,0.32211599]
[1738973850263,4.554e-05,96495.0,96494.0,0.33111599]
[1738973851949,0.07894554,96495.0,96494.0,0.33111599]
[1738973852158,0.07894554,96495.0,96494.0,0.28655114]
[1738973852331,0.07894554,96495.0,96494.0,1.15495114]
[1738973853117,0.07894554,96495.0,96494.0,1.05244749]
[1738973853329,0.12684554,96495.0,96494.0,1.05244749]
[1738973853524,0.12684554,96495.0,96494.0,1.04344749]
[1738973853728,0.12684554,96495.0,96494.0,1.03444749]
[1738973853930,0.12684554,96495.0,96494.0,1.05044749]
[1738973858308,0.12684554,96495.0,96494.0,0.50894749]
[1738973859140,0.12706982,96495.0,96494.0,0.50894749]
[1738973859599,0.00026982,96495.0,96494.0,0.61145114]
[1738973859725,0.1288,96513.0,96508.0,0.155427]
[1738973859726,0.0479,96513.0,96508.0,0.155427]
[1738973859929,0.0479,96513.0,96508.0,1.12633065]
[1738973859930,0.0002697,96509.0,96508.0,1.12633065]
[1738973860899,0.0002697,96509.0,96508.0,1.15853869]
[1738973861054,0.0002697,96509.0,96508.0,1.16453869]
[1738973861390,0.0002697,96509.0,96508.0,1.13233065]
[1738973861737,0.0002697,96509.0,96508.0,1.16454023]
[1738973862380,0.0002697,96509.0,96508.0,1.12633065]
[1738973862576,0.0002697,96509.0,96508.0,1.13333065]
[1738973862809,0.0002697,96509.0,96508.0,1.16553923]
[1738973862985,0.0002697,96509.0,96508.0,1.17153923]
[1738973863198,0.0002697,96509.0,96508.0,1.13933065]
[1738973863553,0.0002697,96509.0,96508.0,1.1715402]
[1738973863754,0.0002697,96509.0,96508.0,1.1655402]
[1738973863986,0.0002697,96509.0,96508.0,1.1745402]
[1738973866019,0.0002697,96509.0,96508.0,1.19546558]
[1738973866587,0.0002697,96509.0,96508.0,1.16325603]
[1738973866805,0.0002697,96509.0,96508.0,1.1954631]
[1738973866988,0.0002697,96509.0,96508.0,1.16325603]
[1738973868998,0.0002697,96509.0,96508.0,1.17374848]
[1738973870911,0.0002697,96509.0,96508.0,1.16874848]
[1738973878177,0.0002697,96509.0,96508.0,1.34174848]
[1738973878370,0.0002697,96509.0,96508.0,1.37394758]
[1738973878972,0.0002697,96509.0,96508.0,1.38394758]
[1738973879198,0.0002697,96509.0,96508.0,1.37494758]
[1738973879471,0.0002697,96509.0,96508.0,1.36794758]
[1738973879689,0.0002697,96509.0,96508.0,1.38594758]
[1738973882943,7e-07,96509.0,96508.0,1.38594758]
[1738973884238,0.0494068,96534.0,96533.0,0.155387]
[1738973884545,0.04947272,96534.0,96533.0,1.12629065]
[1738973885398,0.04947272,96534.0,96533.0,1.13129065]
[1738973886479,0.04947272,96534.0,96533.0,1.13429065]
[1738973887436,0.04947272,96534.0,96533.0,1.15451968]
[1738973891243,0.04947272,96534.0,96533.0,1.16464393]
[1738973892794,0.04947272,96534.0,96533.0,1.03691125]
[1738973893939,0.04947272,96534.0,96533.0,0.49541125]
[1738973895094,0.04947272,96534.0,96533.0,0.5979149]
[1738973896754,0.04947272,96534.0,96533.0,0.5929149]
[1738973896977,0.04947272,96534.0,96533.0,0.5899149]
[1738973897164,0.04947272,96534.0,96533.0,0.6009149]
[1738973899839,0.04947272,96534.0,96533.0,1.1424149]
[1738973901954,0.00017272,96534.0,96533.0,1.1654149]
[1738973902830,0.00017272,96534.0,96533.0,1.1975769]
[1738973903041,0.0822,96552.0,96551.0,0.155358]
[1738973903247,0.0822,96552.0,96551.0,0.25786165]
[1738973903487,0.0454,96554.0,96551.0,0.25786165]
[1738973903689,0.0454,96554.0,96553.0,0.155355]
[1738973903886,0.0454,96554.0,96553.0,0.25785865]
[1738973905084,0.0454,96554.0,96553.0,0.26685865]
[1738973905906,0.0454,96554.0,96553.0,0.61675865]
[1738973906108,0.0796,96559.0,96554.0,0.023]
[1738973906246,0.0796,96559.0,96558.0,0.155347]
[1738973906458,0.1258,96564.0,96560.0,0.155343]
[1738973906659,0.1258,96564.0,96560.0,0.25784665]
[1738973908002,0.1258,96564.0,96560.0,0.26484665]
[1738973908561,0.1258,96564.0,96560.0,0.26884665]
[1738973911859,0.1258,96564.0,96560.0,1.13724665]
[1738973912737,0.1258,96564.0,96560.0,1.034743]
[1738973912937,0.0779068,96561.0,96560.0,1.034743]
[1738973917911,0.0779068,96561.0,96560.0,0.493243]
[1738973923663,0.0779068,96561.0,96560.0,1.034743]
[1738973935926,0.0001068,96561.0,96560.0,1.16024665]
[1738973936120,0.0001068,96561.0,96560.0,1.19246943]
[1738973936621,0.0001068,96561.0,96560.0,1.18546943]
[1738973937078,0.0001068,96561.0,96560.0,1.18946943]
[1738973937460,0.0001068,96561.0,96560.0,1.18546943]
[1738973938500,0.0001068,96561.0,96560.0,1.18146943]
[1738973938861,0.0001068,96561.0,96560.0,1.20605271]
[1738973939294,0.0001068,96561.0,96560.0,1.21505271]
[1738973945179,0.0001068,96561.0,96560.0,1.36505271]
[1738973945406,8e-07,96561.0,96560.0,1.37505271]
[1738973945592,8e-07,96561.0,96560.0,1.42105271]
[1738973946193,8e-07,96561.0,96560.0,1.41205271]
[1738973946588,0.00022428,96582.0,96576.0,0.023]
[1738973946802,0.00022428,96582.0,96581.0,0.17831]
[1738973947000,0.00022428,96582.0,96581.0,0.31407161]
[1738973947300,0.00022428,96582.0,96581.0,0.28081365]
[1738973947929,0.00067886,96582.0,96581.0,0.31299524]
[1738973948331,0.00067886,96582.0,96581.0,0.35346823]
[1738973948533,0.00067886,96582.0,96581.0,0.36146823]
[1738973948926,0.00067886,96582.0,96581.0,0.35346823]
[1738973949267,0.00067886,96582.0,96581.0,0.37146823]
[1738973949562,0.00067886,96582.0,96581.0,0.36246823]
[1738973949772,0.00067886,96582.0,96581.0,0.37146823]
[1738973950351,0.00067886,96582.0,96581.0,1.23986823]
[1738973951154,0.00067886,96582.0,96581.0,1.20768664]
[1738973951523,0.00067886,96582.0,96581.0,1.19868664]
[1738973951757,0.00067886,96582.0,96581.0,1.20768664]
[1738973951956,0.00067886,96582.0,96581.0,1.20892312]
[1738973953057,0.00067886,96582.0,96581.0,1.21792312]
[1738973953257,0.00067886,96582.0,96581.0,1.19492312]
[1738973953481,0.12297886,96582.0,96581.0,1.19492312]
[1738973954824,0.12297886,96582.0,96581.0,1.17003341]
[1738973955964,0.04707886,96582.0,96581.0,1.22515582]
[1738973956171,0.00013252,96592.0,96591.0,0.155293]
[1738973956381,0.00013252,96592.0,96591.0,0.25779665]
[1738973958114,0.00013252,96592.0,96591.0,0.26579665]
[1738973958330,0.0759,96607.0,96602.0,0.155276]
[1738973958533,0.0759,96607.0,96602.0,1.12721469]
[1738973958737,0.0759,96607.0,96602.0,0.79927965]
[1738973959562,0.0759,96607.0,96602.0,0.80627965]
[1738973960192,0.0759,96607.0,96602.0,0.81671449]
[1738973960693,0.0759,96607.0,96602.0,0.85713007]
[1738973961214,0.0759,96607.0,96602.0,0.85913007]
[1738973961621,0.0759,96607.0,96602.0,0.85813007]
[1738973961925,0.0759,96607.0,96602.0,0.85013007]
[1738973962101,0.0759,96607.0,96602.0,0.85913007]
[1738973962311,0.0759,96607.0,96602.0,0.86613007]
[1738973962660,0.0759,96607.0,96602.0,0.85913007]
[1738973963277,0.0759,96607.0,96602.0,0.85813007]
[1738973963817,0.0759,96607.0,96602.0,0.86713007]
[1738973964462,0.0759,96607.0,96602.0,0.85013007]
[1738973964688,0.0759,96607.0,96602.0,0.85913007]
[1738973964909,0.0759,96607.0,96602.0,0.86713007]
[1738973965112,0.0759,96607.0,96602.0,0.85813007]
[1738973965517,0.0759,96607.0,96602.0,0.87513007]
[1738973965760,2.0,96610.0,96605.0,0.305271]
[1738973965973,1.90133238,96610.0,96609.0,0.338265]
[1738973966174,1.8325126,96610.0,96609.0,0.44076865]
[1738973967144,1.8325126,96610.0,96609.0,1.30916865]
[1738973968001,1.8325126,96610.0,96609.0,1.29916865]
[1738973968152,1.8325126,96610.0,96609.0,1.31716865]
[1738973968760,1.8325126,96610.0,96609.0,1.32616865]
[1738973968970,1.8325126,96610.0,96609.0,1.31716865]
[1738973969173,1.8325126,96610.0,96609.0,1.17616865]
[1738973969375,1.8325126,96610.0,96609.0,1.15316865]
[1738973970177,1.9136126,96610.0,96609.0,1.15316865]
[1738973970952,1.9136126,96610.0,96609.0,1.041665]
[1738973971132,1.9605126,96610.0,96609.0,1.06408058]
[1738973971339,2.00331036,96610.0,96609.0,0.38031558]
[1738973971492,2.15857336,96610.0,96609.0,0.38031558]
[1738973971695,2.15857336,96610.0,96609.0,0.37331558]
[1738973971901,2.15857336,96610.0,96609.0,0.37931558]
[1738973972096,2.15857336,96610.0,96609.0,0.38831558]
[1738973972298,2.1157756,96610.0,96609.0,0.38831558]
[1738973972729,2.1157756,96610.0,96609.0,0.04941558]
[1738973973079,2.1157756,96610.0,96584.0,0.5415]
[1738973973080,0.0469,96596.0,96584.0,0.8184]
[1738973973336,1.8325126,96610.0,96609.0,0.08349467]
[1738973973537,1.8325126,96610.0,96608.0,0.155265]
[1738973973746,1.8325126,96610.0,96609.0,0.2819]
[1738973974077,1.8325126,96610.0,96609.0,0.2799]
[1738973974502,1.8325126,96610.0,96609.0,0.2809]
[1738973974905,1.8325126,96610.0,96609.0,0.2799]
[1738973975106,1.8325126,96610.0,96609.0,0.2769]
[1738973975338,1.8325126,96610.0,96609.0,0.2799]
[1738973975530,1.8326193,96610.0,96609.0,0.2799]
[1738973975837,1.8326193,96610.0,96609.0,0.38240365]
[1738973980260,1.8326193,96610.0,96609.0,0.39249672]
[1738973981111,1.8326193,96610.0,96609.0,0.54776172]
[1738973981283,1.8326193,96610.0,96609.0,0.54576172]
[1738973981504,1.8326193,96610.0,96609.0,0.54476172]
[1738973981817,1.8326193,96610.0,96609.0,0.55476172]
[1738973982548,1.8326193,96610.0,96609.0,0.55976172]
[1738973982836,1.8326193,96610.0,96609.0,0.55476172]
[1738973983191,1.8326193,96610.0,96609.0,1.10226172]
[1738973983617,1.8326193,96610.0,96609.0,1.11098131]
[1738973983832,1.8326193,96610.0,96609.0,1.11798131]
[1738973984028,1.8326193,96610.0,96609.0,1.12398131]
[1738973984541,1.8326193,96610.0,96609.0,1.12298131]
[1738973985114,1.8326193,96610.0,96609.0,1.13098131]
[1738973985314,1.8326193,96610.0,96609.0,1.15398131]
[1738973985542,1.8326193,96610.0,96609.0,1.16943295]
[1738973986357,1.8326193,96610.0,96609.0,1.16143295]
[1738973986548,1.8336193,96610.0,96609.0,1.16943295]
[1738973986751,1.8336193,96610.0,96609.0,1.15743295]
[1738973986922,1.8336193,96610.0,96609.0,1.14943295]
[1738973987125,1.8326193,96610.0,96609.0,1.15565702]
[1738973987447,1.8336193,96610.0,96609.0,1.16465702]
[1738973987604,1.8336193,96610.0,96609.0,1.17365702]
[1738973988006,1.8336193,96610.0,96609.0,1.21575876]
[1738973988849,1.8336193,96610.0,96609.0,1.36575876]
[1738973993281,1.8336193,96610.0,96609.0,1.34103917]
[1738973997263,1.8336193,96610.0,96609.0,1.36571233]
[1738974004636,1.8336193,96610.0,96609.0,1.18271233]
[1738974004867,1.9090193,96610.0,96609.0,1.15061059]
[1738974006843,2.06092295,96610.0,96609.0,0.34124887]
[1738974006973,1.9584193,96610.0,96609.0,0.34124887]
[1738974007187,0.155281,96599.0,96598.0,0.2769]
[1738974007388,0.280081,96599.0,96598.0,0.2769]
[1738974007760,0.1248,96599.0,96598.0,0.2769]
[1738974008722,0.1248,96599.0,96598.0,0.2809]
[1738974010585,0.1248,96599.0,96598.0,0.2829]
[1738974010740,0.1248,96599.0,96598.0,0.28312407]
[1738974011217,0.0754,96599.0,96598.0,0.27912407]
[1738974011409,0.0754,96599.0,96598.0,0.28731091]
[1738974011583,0.0764,96599.0,96598.0,0.28731091]
[1738974012390,0.0764,96599.0,96598.0,0.28831091]
[1738974013001,1.8326193,96610.0,96598.0,0.28831091]
[1738974013002,1.8326193,96610.0,96608.0,0.155266]
[1738974013208,1.8326193,96610.0,96609.0,0.10250365]
[1738974014440,1.8356193,96610.0,96609.0,0.10250365]
[1738974014675,1.8326193,96610.0,96609.0,0.10250365]
[1738974015400,1.8326193,96610.0,96608.0,0.155266]
[1738974015584,1.93512295,96610.0,96608.0,0.155266]
[1738974016004,1.8326193,96610.0,96608.0,0.155266]
[1738974016393,1.8326193,96610.0,96609.0,0.002]
[1738974016827,1.8326193,96610.0,96608.0,0.155266]
[1738974016990,1.8326193,96610.0,96608.0,0.157266]
[1738974017599,1.8326193,96610.0,96608.0,0.155266]
[1738974017955,2.06272295,96610.0,96609.0,0.002]
[1738974018661,1.9602193,96610.0,96609.0,0.002]
[1738974019038,0.155278,96601.0,96598.0,0.00022407]
[1738974019248,0.0826,96600.0,96598.0,0.00022407]
[1738974019828,0.1276,96599.0,96598.0,0.00022407]
[1738974020154,0.38010365,96599.0,96598.0,0.00022407]
[1738974020351,0.47504902,96599.0,96598.0,0.00022407]
[1738974020565,0.48344902,96599.0,96598.0,0.00022407]
[1738974021184,0.48544902,96599.0,96598.0,0.00022407]
[1738974021337,0.15,96598.0,96571.0,0.2071]
[1738974021542,0.0826,96582.0,96575.0,0.155318]
[1738974021752,0.1270975,96582.0,96573.0,0.155322]
[1738974021955,0.1270975,96582.0,96574.0,0.15532]
[1738974022415,0.1276,96582.0,96570.0,0.2769]
[1738974022563,0.1276,96582.0,96569.0,0.08349467]
[1738974022769,0.1276,96582.0,96570.0,0.155327]
[1738974022968,0.1276,96582.0,96572.0,0.207099]
[1738974023296,0.1276,96582.0,96573.0,0.155321]
[1738974023500,0.1326,96582.0,96573.0,0.155321]
[1738974023903,0.1276,96582.0,96573.0,0.155321]
[1738974024109,0.1276,96582.0,96581.0,0.00535995]
[1738974024341,0.1326,96582.0,96581.0,0.00535995]
[1738974024532,0.1326,96582.0,96581.0,0.00035995]
[1738974024938,0.1366,96582.0,96581.0,0.00035995]
[1738974025301,0.2072045,96582.0,96581.0,0.00035995]
[1738974026082,0.1366,96582.0,96581.0,0.00035995]
[1738974027349,0.1316,96582.0,96581.0,0.00035995]
[1738974028656,0.1356,96582.0,96581.0,0.00035995]
[1738974029377,0.1316,96582.0,96581.0,0.00035995]
[1738974029573,0.1326,96582.0,96581.0,0.00035995]
[1738974029792,0.2028048,96582.0,96581.0,0.00035995]
[1738974030003,0.2068048,96582.0,96581.0,0.00035995]
[1738974030209,0.1978048,96582.0,96581.0,0.00035995]
[1738974030402,0.2018048,96582.0,96581.0,0.00035995]
[1738974030613,0.45830845,96582.0,96581.0,0.00035995]
[1738974030939,0.45430845,96582.0,96581.0,0.00035995]
[1738974031144,0.45830845,96582.0,96581.0,0.00035995]
[1738974031908,0.46915226,96582.0,96581.0,0.00035995]
[1738974032269,0.46915226,96582.0,96549.0,0.207147]
[1738974032270,0.15,96581.0,96542.0,0.2769]
[1738974032471,0.287545,96559.0,96558.0,0.08394925]
[1738974032730,0.295945,96559.0,96558.0,0.08394925]
[1738974032937,0.295945,96559.0,96558.0,0.00045458]
[1738974033480,0.295945,96559.0,96558.0,0.00145458]
[1738974033702,0.3669637,96559.0,96558.0,0.00245458]
[1738974034355,0.36764987,96559.0,96558.0,0.00245458]
[1738974035217,0.47015352,96559.0,96558.0,0.00145458]
[1738974035414,0.62015352,96559.0,96558.0,0.00145458]
[1738974035617,0.63022498,96559.0,96558.0,0.00345458]
[1738974037656,0.63022498,96559.0,96558.0,0.00245458]
[1738974038020,0.63322498,96559.0,96558.0,0.00045458]
[1738974038228,0.63722498,96559.0,96558.0,0.00045458]
[1738974038568,0.63322498,96559.0,96558.0,0.00045458]
[1738974038968,0.63722498,96559.0,96558.0,0.00045458]
[1738974041497,0.63322498,96559.0,96558.0,0.00045458]
[1738974041923,0.63922498,96559.0,96558.0,0.00145458]
[1738974042283,0.63322498,96559.0,96558.0,0.00045458]
[1738974042688,0.63622498,96559.0,96558.0,0.00145458]
[1738974043054,0.64122498,96559.0,96558.0,0.00245458]
[1738974043293,0.63622498,96559.0,96558.0,0.00145458]
[1738974043696,0.64122498,96559.0,96558.0,0.00245458]
[1738974044418,0.30395763,96559.0,96558.0,0.00245458]
[1738974044571,0.16231763,96559.0,96558.0,0.00245458]
[1738974045207,0.11281763,96559.0,96558.0,0.00245458]
[1738974045411,0.01575763,96559.0,96558.0,0.00145458]
[1738974045611,0.01075763,96559.0,96558.0,0.15580158]
[1738974045955,0.00836,96572.0,96570.0,0.155326]
[1738974046183,0.0106998,96571.0,96570.0,0.155326]
[1738974046386,0.0106998,96571.0,96567.0,0.207108]
[1738974046592,0.00836,96572.0,96570.0,0.155327]
[1738974046794,0.15,96577.0,96569.0,0.155329]
[1738974047013,0.0106998,96571.0,96569.0,0.155329]
[1738974047212,0.15,96577.0,96570.0,0.001]
[1738974047431,0.005,96572.0,96570.0,0.001]
[1738974047840,0.005,96572.0,96570.0,0.156327]
[1738974048040,0.005,96572.0,96570.0,0.001]
[1738974048241,0.005,96572.0,96571.0,0.155326]
[1738974048651,0.008,96577.0,96571.0,0.155326]
[1738974048882,0.0001067,96582.0,96576.0,0.155318]
[1738974049084,0.007,96577.0,96576.0,0.155318]
[1738974049849,0.0001067,96582.0,96574.0,0.207093]
[1738974050079,0.01009188,96581.0,96577.0,0.155316]
[1738974050426,0.01073393,96581.0,96572.0,0.207099]
[1738974050576,0.01073393,96581.0,96568.0,0.2769]
[1738974050795,0.004,96577.0,96576.0,0.157317]
[1738974051186,0.0011067,96582.0,96576.0,0.157317]
[1738974051416,0.0011067,96582.0,96577.0,0.001]
[1738974051612,0.02626972,96581.0,96577.0,0.001]
[1738974051970,0.02626972,96581.0,96576.0,0.155317]
[1738974052176,0.02626972,96581.0,96576.0,0.002]
[1738974052177,0.01076248,96581.0,96576.0,0.002]
[1738974052616,0.01076248,96581.0,96579.0,0.155312]
[1738974053019,0.0001067,96582.0,96581.0,0.15531]
[1738974054324,0.0001067,96582.0,96581.0,0.25781365]
[1738974054953,0.0001067,96582.0,96581.0,0.25881365]
[1738974055286,0.0001067,96582.0,96581.0,0.25781365]
[1738974055486,0.0001067,96582.0,96581.0,0.25881365]
[1738974055800,0.0001067,96582.0,96581.0,0.25781365]
[1738974055979,0.0001067,96582.0,96581.0,0.15931]
[1738974056613,0.0011067,96582.0,96581.0,0.16431]
[1738974056790,0.0011067,96582.0,96581.0,0.16031]
[1738974057191,0.0011067,96582.0,96581.0,0.16131]
[1738974057621,0.0001067,96582.0,96581.0,0.15631]
[1738974058043,0.0001067,96582.0,96581.0,0.15731]
[1738974058485,0.0001067,96582.0,96581.0,0.15631]
[1738974058880,0.0001067,96582.0,96581.0,0.15531]
[1738974059388,0.0001067,96582.0,96581.0,0.15931]
[1738974059767,0.0001067,96582.0,96581.0,0.16131]
[1738974059970,0.0011067,96582.0,96581.0,0.16631]
[1738974060524,0.0001067,96582.0,96581.0,0.16131]
[1738974060725,0.0001067,96582.0,96581.0,0.16331]
[1738974061860,0.0001067,96582.0,96581.0,0.16131]
[1738974062057,0.0001067,96582.0,96581.0,0.15531]
[1738974062614,0.0001067,96582.0,96581.0,0.15631]
[1738974063116,0.0001067,96582.0,96581.0,0.15931]
[1738974063287,0.0001067,96582.0,96581.0,0.43521]
[1738974063496,0.0001067,96582.0,96581.0,0.58591365]
[1738974063957,0.0001067,96582.0,96581.0,0.58991365]
[1738974064127,0.0001067,96582.0,96581.0,1.36401365]
[1738974064324,0.0001067,96582.0,96581.0,1.38701365]
[1738974064870,0.0001067,96582.0,96581.0,1.38301365]
[1738974065695,0.0001067,96582.0,96581.0,1.38001365]
[1738974066056,0.0001067,96582.0,96581.0,1.38301365]
[1738974066192,0.0001067,96582.0,96581.0,1.38401365]
[1738974066630,0.0011067,96582.0,96581.0,1.38701365]
[1738974066832,0.0011067,96582.0,96581.0,1.39601365]
[1738974067026,0.0021067,96582.0,96581.0,1.39601365]
[1738974069674,0.0021067,96582.0,96581.0,1.39623772]
[1738974078567,0.0021067,96582.0,96581.0,1.42826949]
[1738974079124,0.0001067,96582.0,96581.0,1.41226949]
[1738974079326,0.0011067,96582.0,96581.0,1.42126949]
[1738974079558,0.0021067,96582.0,96581.0,1.43026949]
[1738974080385,0.0021067,96582.0,96581.0,1.39823772]
[1738974082475,0.0021067,96582.0,96581.0,1.430339]
[1738974084246,0.0021067,96582.0,96581.0,1.126539]
[1738974084507,0.0021067,96582.0,96581.0,0.27603772]
[1738974084743,0.0774067,96582.0,96581.0,0.27603772]
[1738974085370,0.0764067,96582.0,96581.0,0.26703772]
[1738974085801,0.0021067,96582.0,96581.0,0.29703772]
[1738974086047,0.0011067,96582.0,96581.0,0.28803772]
[1738974086372,0.0001067,96582.0,96581.0,0.28903772]
[1738974086642,0.0011067,96582.0,96581.0,0.32417619]
[1738974086808,0.0001067,96582.0,96581.0,0.31317619]
[1738974087159,0.0021067,96582.0,96581.0,0.32817619]
[1738974090034,0.0021067,96582.0,96581.0,1.14657619]
[1738974090810,0.0021067,96582.0,96581.0,1.19597619]
[1738974091668,7e-07,96582.0,96581.0,1.43617619]
[1738974091870,1.8326193,96610.0,96609.0,0.155265]
[1738974092074,1.8326193,96610.0,96609.0,0.53466865]
[1738974092278,1.84188692,96610.0,96609.0,0.53466865]
[1738974093024,1.84188692,96610.0,96609.0,0.53480481]
[1738974095168,1.84188692,96610.0,96609.0,0.44284297]
[1738974097237,1.84188692,96610.0,96609.0,0.43230116]
[1738974108155,1.92278692,96610.0,96609.0,0.27703616]
[1738974108325,2.02529057,96610.0,96609.0,0.27703616]
[1738974108525,2.18055357,96610.0,96609.0,0.27703616]
[1738974108733,2.07804992,96610.0,96609.0,0.27703616]
[1738974108935,2.12534992,96610.0,96609.0,0.27703616]
[1738974113686,2.13567362,96610.0,96609.0,0.27703616]
[1738974113888,2.13567362,96610.0,96609.0,0.00013616]
[1738974114972,0.09986384,96600.0,96598.0,0.155282]
[1738974115209,0.09986384,96600.0,96599.0,0.155281]
[1738974115938,0.1095097,96600.0,96599.0,0.155281]
[1738974116939,0.09986384,96600.0,96597.0,0.155283]
[1738974117169,0.09986384,96600.0,96598.0,0.155282]
[1738974117409,0.00884022,96599.0,96598.0,0.155282]
[1738974117579,0.10186384,96600.0,96598.0,0.155282]
[1738974117827,0.00883498,96599.0,96596.0,0.155285]
[1738974118239,0.10386384,96600.0,96597.0,0.155283]
[1738974118458,0.09986384,96600.0,96597.0,0.155283]
[1738974118627,0.00883498,96599.0,96597.0,0.155283]